bitfinex-derivatives/quotes_SOLF0:USTF0_20250803
["timestamp","ask_amount","ask_price","bid_price","bid_amount"]
[1754182330753,3.23,159.53,159.51,5.31143787]
[1754182331167,3.23,159.55,159.51,8.64143787]
[1754182331364,18.87,159.61,159.51,8.64143787]
[1754182331365,3.23,159.54,159.51,8.64143787]
[1754182331558,3.23,159.55,159.51,5.31143787]
[1754182331758,3.23,159.59,159.51,5.31143787]
[1754182332659,3.23,159.56,159.48,5.31143787]
[1754182332860,6.2705,159.52,159.48,5.31143787]
[1754182333164,3.23,159.49,159.48,5.31143787]
[1754182335057,3.23,159.49,159.47,6.2722]
[1754182335257,18.87,159.58,159.46,8.64143787]
[1754182335458,424.93,159.65,159.55,3.33]
[1754182335663,3.23,159.64,159.55,3.33]
[1754182335967,3.23,159.64,159.57,5.31143787]
[1754182336466,6.266,159.63,159.57,5.31143787]
[1754182336669,3.23,159.62,159.57,5.31143787]
[1754182337163,6.2656,159.64,159.57,8.64143787]
[1754182337363,3.23,159.63,159.57,5.31143787]
[1754182337765,3.23,159.61,159.57,5.31143787]
[1754182337966,3.23,159.59,159.57,5.31143787]
[1754182338370,3.23,159.58,159.54,3.33]
[1754182338567,6.2669,159.61,159.56,5.31143787]
[1754182338866,3.23,159.6,159.53,5.31143787]
[1754182339065,3.23,159.6,159.52,3.33]
[1754182339066,3.23,159.6,159.5,5.31143787]
[1754182339263,3.23,159.59,159.49,3.33]
[1754182339469,18.87,159.59,159.48,5.31143787]
[1754182339664,22.1,159.58,159.48,5.31143787]
[1754182339869,3.23,159.57,159.48,5.31143787]
[1754182340174,3.23,159.56,159.43,3.33]
[1754182340370,3.23,159.56,159.44,5.31143787]
[1754182340567,6.2706,159.52,159.44,5.31143787]
[1754182340766,3.23,159.51,159.44,5.31143787]
[1754182340965,3.23,159.51,159.47,5.31143787]
[1754182341272,3.23,159.54,159.48,3.32]
[1754182341574,5.31143787,159.61,159.5,14.90253787]
[1754182341772,3.23,159.53,159.5,14.90253787]
[1754182342073,3.23,159.53,159.5,8.63143787]
[1754182342268,6.2691,159.56,159.5,5.31143787]
[1754182342479,3.23,159.58,159.51,3.32]
[1754182342773,3.23,159.58,159.52,8.69311376]
[1754182343073,3.23,159.62,159.53,3.32]
[1754182343571,3.23,159.59,159.49,12.01311376]
[1754182343873,3.23,159.59,159.49,3.32]
[1754182344561,3.23,159.61,159.5,6.2708]
[1754182344766,3.23,159.61,159.49,3.32]
[1754182344969,18.87,159.61,159.49,3.32]
[1754182345162,3.23,159.56,159.5,9.5908]
[1754182345872,9.4991,159.56,159.5,9.5908]
[1754182346471,27.56311376,159.6,159.47,3.32]
[1754182346672,3.23,159.58,159.47,3.32]
[1754182346877,3.23,159.47,159.44,3.32]
[1754182347079,3.23,159.53,159.41,12.01311376]
[1754182347575,133.67311376,159.54,159.42,6.274]
[1754182347782,3.23,159.53,159.43,3.32]
[1754182347975,3.23,159.52,159.43,3.32]
[1754182348174,18.87,159.52,159.39,3.32]
[1754182348365,11.92311376,159.51,159.34,421.42]
[1754182348570,18.87,159.49,159.37,3.32]
[1754182348767,3.23,159.48,159.35,8.69311376]
[1754182348976,6.2743,159.42,159.36,3.32]
[1754182349274,3.23,159.47,159.35,8.69311376]
[1754182349472,3.23,159.47,159.36,3.32]
[1754182349772,124.98,159.52,159.38,8.69311376]
[1754182349977,3.23,159.53,159.42,3.32]
[1754182350171,3.23,159.53,159.46,6.2725]
[1754182350377,3.23,159.53,159.47,3.32]
[1754182351064,3.23,159.55,159.47,12.01311376]
[1754182351268,3.23,159.55,159.48,3.32]
[1754182351872,3.23,159.55,159.51,6.2705]
[1754182352073,3.23,159.55,159.51,9.5905]
[1754182352373,3.23,159.55,159.52,6.2699]
[1754182352581,3.23,159.55,159.52,3.32]
[1754182353981,3.39,159.59,159.53,3.32]
[1754182355271,3.39,159.57,159.53,9.5898]
[1754182355676,3.39,159.59,159.54,3.32]
[1754182355876,3.39,159.58,159.55,3.32]
[1754182356683,3.39,159.6,159.51,3.32]
[1754182357184,3.39,159.57,159.54,3.32]
[1754182357383,3.39,159.62,159.51,3.32]
[1754182357681,3.39,159.59,159.54,6.2695]
[1754182357883,3.39,159.58,159.54,9.5895]
[1754182358080,3.39,159.57,159.54,3.32]
[1754182358380,3.39,159.65,159.53,3.32]
[1754182359679,33.28470425,159.66,159.53,3.32]
[1754182359680,6.2679,159.59,159.53,3.32]
[1754182359874,6.2679,159.59,159.5,8.69311376]
[1754182360094,3.39,159.58,159.51,3.32]
[1754182360276,3.39,159.58,159.54,3.32]
[1754182360780,6.2675,159.6,159.54,3.32]
[1754182360981,3.39,159.61,159.55,6.2691]
[1754182361177,3.39,159.61,159.55,9.5891]
[1754182361382,3.39,159.61,159.55,3.32]
[1754182361681,3.39,159.6,159.57,3.32]
[1754182363383,3.39,159.61,159.58,3.32]
[1754182363882,3.39,159.61,159.58,9.5879]
[1754182364476,3.39,159.61,159.58,3.32]
[1754182364880,3.39,159.61,159.59,3.32]
[1754182365189,3.39,159.61,159.58,3.32]
[1754182366188,3.39,159.61,159.59,3.32]
[1754182366682,3.39,159.64,159.61,3.32]
[1754182366880,3.39,159.63,159.61,3.32]
[1754182367080,3.39,159.63,159.6,8.59658173]
[1754182368481,5.72159049,159.66,159.61,6.2664]
[1754182368687,3.39,159.65,159.57,8.59658173]
[1754182369484,3.39,159.63,159.6,3.32]
[1754182369883,3.39,159.62,159.6,3.32]
[1754182370685,3.39,159.62,159.59,6.2672]
[1754182370988,3.39,159.62,159.59,9.5872]
[1754182371781,5.72159049,159.66,159.6,5.27658173]
[1754182372289,3.39,159.65,159.6,8.59658173]
[1754182372688,9.6555,159.65,159.61,6.2668]
[1754182372888,3.39,159.63,159.61,3.32]
[1754182373491,3.39,159.64,159.61,3.32]
[1754182373687,5.72159049,159.66,159.63,3.32]
[1754182373998,5.72159049,159.66,159.65,3.32]
[1754182374385,5.72159049,159.66,159.65,9.5852]
[1754182374892,3.39,159.68,159.66,3.32]
[1754182375293,3.39,159.68,159.66,14.86138173]
[1754182377285,3.39,159.71,159.66,8.59658173]
[1754182377692,6.2627,159.72,159.67,6.2644]
[1754182377893,6.2627,159.72,159.66,8.59658173]
[1754182378196,3.39,159.69,159.66,8.59658173]
[1754182378396,3.39,159.69,159.67,6.2641]
[1754182378597,3.39,159.69,159.66,8.59658173]
[1754182379399,3.39,159.68,159.66,8.59658173]
[1754182379988,3.39,159.67,159.66,11.54138173]
[1754182380192,143.53,159.76,159.66,8.59658173]
[1754182380193,3.39,159.69,159.66,8.59658173]
[1754182380401,3.39,159.74,159.66,8.59658173]
[1754182380604,6.2632,159.71,159.66,14.86108173]
[1754182380796,3.39,159.69,159.66,14.86108173]
[1754182381100,3.39,159.68,159.66,14.86108173]
[1754182382197,6.2634,159.7,159.66,14.86108173]
[1754182382401,3.39,159.67,159.66,11.54108173]
[1754182382801,18.87,159.75,159.66,14.86108173]
[1754182383003,18.87,159.75,159.68,8.59658173]
[1754182383004,3.39,159.75,159.68,8.59658173]
[1754182383399,6.2624,159.73,159.69,6.2635]
[1754182383698,124.66,159.76,159.69,6.2635]
[1754182384003,3.22,159.73,159.7,6.2631]
[1754182384202,3.22,159.79,159.72,8.59658173]
[1754182384504,6.2601,159.79,159.74,6.2616]
[1754182384704,3.22,159.78,159.74,6.2616]
[1754182384901,3.22,159.78,159.72,8.59658173]
[1754182385104,6.2607,159.77,159.72,14.85898173]
[1754182385305,3.22,159.8,159.72,8.59658173]
[1754182385600,6.2607,159.77,159.72,14.85898173]
[1754182385806,3.22,159.75,159.72,14.85898173]
[1754182386005,3.22,159.74,159.72,8.59658173]
[1754182386494,3.22,159.73,159.72,5.27658173]
[1754182387205,3.22,159.78,159.72,5.27658173]
[1754182387501,3.22,159.76,159.73,3.32]
[1754182387801,3.22,159.76,159.74,3.32]
[1754182388106,3.22,159.74,159.71,8.59658173]
[1754182388307,3.22,159.73,159.71,8.59658173]
[1754182388705,3.22,159.73,159.71,14.85908173]
[1754182389113,3.22,159.73,159.71,8.59658173]
[1754182392111,3.22,159.73,159.69,5.27658173]
[1754182392405,3.22,159.73,159.65,5.27658173]
[1754182392608,3.22,159.72,159.68,9.5839]
[1754182392809,3.22,159.77,159.68,3.32]
[1754182393110,3.22,159.76,159.67,5.27658173]
[1754182393307,6.2627,159.72,159.67,5.27658173]
[1754182393508,6.2627,159.72,159.69,3.32]
[1754182393813,3.22,159.76,159.68,3.32]
[1754182394015,3.22,159.76,159.67,5.27658173]
[1754182394514,3.22,159.69,159.67,5.27658173]
[1754182394716,3.22,159.69,159.67,8.59658173]
[1754182395306,3.22,159.69,159.67,5.27658173]
[1754182395509,3.22,159.69,159.67,8.59658173]
[1754182395709,3.22,159.76,159.67,14.86078173]
[1754182395914,3.22,159.76,159.67,5.27658173]
[1754182396110,3.22,159.76,159.66,6.2647]
[1754182396311,3.22,159.76,159.66,11.54128173]
[1754182396513,3.22,159.76,159.66,8.59658173]
[1754182397218,3.22,159.68,159.65,3.32]
[1754182397817,5.27658173,159.71,159.57,3.32]
[1754182398017,3.22,159.7,159.6,5.27658173]
[1754182398316,3.22,159.69,159.6,5.27658173]
[1754182398512,3.22,159.68,159.6,5.27658173]
[1754182398905,18.87,159.69,159.6,5.27658173]
[1754182399109,3.22,159.61,159.57,3.32]
[1754182399420,3.22,159.59,159.56,5.27658173]
[1754182399617,124.4,159.71,159.51,3.32]
[1754182399618,3.22,159.58,159.51,3.32]
[1754182399813,6.2674,159.6,159.54,14.86578173]
[1754182400013,3.22,159.64,159.55,8.59658173]
[1754182400418,3.22,159.62,159.59,3.32]
[1754182400814,3.22,159.62,159.6,3.32]
[1754182401018,3.22,159.67,159.59,3.32]
[1754182401317,3.22,159.67,159.58,5.27658173]
[1754182401518,5.27658173,159.67,159.55,11.54538173]
[1754182401715,3.22,159.66,159.55,14.86538173]
[1754182401913,3.22,159.66,159.59,3.32]
[1754182402920,3.22,159.63,159.59,3.32]
[1754182403107,3.22,159.66,159.55,5.27658173]
[1754182403307,3.22,159.63,159.54,3.32]
[1754182403913,3.22,159.63,159.55,5.27658173]
[1754182404220,3.22,159.63,159.56,3.32]
[1754182404421,3.22,159.61,159.58,3.32]
[1754182404610,9.4864,159.62,159.59,3.32]
[1754182404813,6.2664,159.62,159.61,3.32]
[1754182405014,9.4864,159.62,159.58,3.32]
[1754182405222,3.22,159.62,159.58,9.5879]
[1754182405418,3.22,159.6,159.58,3.32]
[1754182405812,3.22,159.66,159.56,3.32]
[1754182406217,6.2668,159.62,159.56,9.5887]
[1754182406520,3.22,159.62,159.55,5.27658173]
[1754182406821,3.22,159.66,159.6,3.32]
[1754182407017,3.22,159.66,159.58,8.59658173]
[1754182408122,6.2659,159.64,159.59,6.2676]
[1754182408309,6.2659,159.64,159.6,3.32]
[1754182408514,3.22,159.61,159.59,6.2676]
[1754182408815,3.22,159.63,159.58,8.59658173]
[1754182409015,3.22,159.61,159.58,8.59658173]
[1754182409222,3.22,159.61,159.59,3.32]
[1754182409424,3.22,159.6,159.58,5.27658173]
[1754182409620,3.22,159.67,159.58,5.27658173]
[1754182409922,22.09,159.66,159.56,3.32]
[1754182410119,3.22,159.65,159.56,3.32]
[1754182411111,3.22,159.62,159.56,3.32]
[1754182411512,9.4868,159.62,159.58,6.2679]
[1754182411713,6.2668,159.62,159.58,9.5879]
[1754182411921,3.22,159.6,159.58,9.5879]
[1754182412113,6.2668,159.62,159.57,6.2683]
[1754182412320,3.22,159.6,159.57,9.5883]
[1754182412519,3.22,159.6,159.58,3.32]
[1754182413417,3.22,159.6,159.57,3.32]
[1754182413626,3.38,159.61,159.56,3.32]
[1754182413826,3.38,159.61,159.58,6.2678]
[1754182414024,3.38,159.65,159.55,8.59658173]
[1754182414224,3.38,159.65,159.56,3.32]
[1754182414424,3.38,159.61,159.58,3.32]
[1754182414625,3.38,159.61,159.59,3.32]
[1754182415221,3.38,159.62,159.58,11.54448173]
[1754182415429,6.267,159.61,159.58,5.27658173]
[1754182415624,3.38,159.62,159.56,3.32]
[1754182416128,3.38,159.59,159.56,9.5887]
[1754182416721,3.38,159.59,159.57,9.5883]
[1754182417232,143.19,159.66,159.55,8.59658173]
[1754182417233,3.38,159.64,159.55,8.59658173]
[1754182417425,3.38,159.6,159.56,9.5887]
[1754182417625,6.2671,159.61,159.56,9.5887]
[1754182417826,3.38,159.58,159.56,9.5887]
[1754182419425,3.38,159.6,159.58,3.32]
[1754182419728,3.38,159.59,159.57,6.2683]
[1754182419924,3.38,159.58,159.57,6.2683]
[1754182420523,6.2667,159.62,159.58,6.2679]
[1754182420725,3.38,159.64,159.59,3.32]
[1754182420926,3.38,159.64,159.58,5.27658173]
[1754182421929,3.38,159.6,159.58,8.59658173]
[1754182422124,6.2668,159.61,159.58,5.27658173]
[1754182422334,3.38,159.61,159.59,3.32]
[1754182424128,3.38,159.61,159.58,5.27658173]
[1754182424434,3.38,159.65,159.59,3.32]
[1754182424832,3.38,159.65,159.6,3.59834643]
[1754182425034,3.38,159.65,159.6,6.91834643]
[1754182425236,124.32,159.66,159.6,9.86544643]
[1754182425432,3.38,159.64,159.62,3.59834643]
[1754182425735,3.38,159.63,159.62,3.59834643]
[1754182425930,3.38,159.62,159.6,6.91834643]
[1754182426829,3.38,159.62,159.6,3.32]
[1754182427136,3.38,159.64,159.6,3.32]
[1754182427830,420.88,159.7,159.63,3.32]
[1754182428042,3.38,159.69,159.63,3.32]
[1754182428340,6.2647,159.67,159.63,3.32]
[1754182428534,3.38,159.67,159.59,3.32]
[1754182428735,3.38,159.67,159.61,5.27750647]
[1754182429829,6.2656,159.64,159.61,5.27750647]
[1754182430037,3.38,159.62,159.61,5.27750647]
[1754182430232,3.38,159.62,159.59,8.59750647]
[1754182430424,3.38,159.62,159.6,3.32]
[1754182432338,3.38,159.62,159.6,9.5871]
[1754182433132,3.38,159.62,159.6,3.32]
[1754182433328,6.266,159.63,159.6,3.32]
[1754182433531,22.25,159.67,159.59,5.27750647]
[1754182433737,3.38,159.66,159.59,5.27750647]
[1754182433934,3.38,159.62,159.59,5.27750647]
[1754182434233,3.38,159.61,159.6,3.32]
[1754182434536,6.2664,159.62,159.59,5.27750647]
[1754182434731,3.38,159.61,159.59,5.27750647]
[1754182434929,3.38,159.6,159.59,5.27750647]
[1754182439041,3.38,159.6,159.56,5.27750647]
[1754182439240,3.38,159.6,159.52,5.27750647]
[1754182439836,3.38,159.6,159.53,3.32]
[1754182440237,5.27750647,159.62,159.51,5.27750647]
[1754182440443,10.37009773,159.61,159.51,5.27750647]
[1754182440639,5.27750647,159.59,159.46,142.01676666]
[1754182440842,6.2704,159.52,159.48,5.27750647]
[1754182441043,3.38,159.51,159.45,5.27750647]
[1754182442145,3.38,159.47,159.43,3.32]
[1754182442748,3.38,159.47,159.44,3.32]
[1754182442942,3.38,159.46,159.44,3.32]
[1754182443449,3.38,159.5,159.42,5.27750647]
[1754182443743,18.87,159.51,159.42,8.54750647]
[1754182443939,3.31,159.49,159.46,3.27]
[1754182444142,3.31,159.48,159.46,3.27]
[1754182444342,3.31,159.5,159.47,3.27]
[1754182444541,129.27750647,159.57,159.49,3.27]
[1754182444542,3.31,159.55,159.49,3.27]
[1754182444741,3.31,159.55,159.45,5.27750647]
[1754182444950,24.14750647,159.54,159.43,3.27]
[1754182445237,3.31,159.52,159.43,3.27]
[1754182446550,3.31,159.51,159.46,3.27]
[1754182446744,24.14750647,159.56,159.45,5.27750647]
[1754182446745,3.31,159.5,159.45,5.27750647]
[1754182446945,3.31,159.49,159.47,3.27]
[1754182448043,3.31,159.49,159.48,6.2719]
[1754182450151,3.31,159.49,159.48,9.5419]
[1754182450348,3.31,159.55,159.49,6.2712]
[1754182450953,3.31,159.53,159.49,6.2712]
[1754182451155,3.31,159.53,159.48,9.5418]
[1754182452256,3.31,159.52,159.48,9.5418]
[1754182452554,3.31,159.5,159.49,6.2714]
[1754182452756,3.31,159.5,159.48,3.27]
[1754182453152,3.31,159.55,159.48,6.2715]
[1754182454047,3.31,159.54,159.49,6.2714]
[1754182454252,3.31,159.54,159.49,9.5414]
[1754182454958,142.83,159.58,159.5,3.27]
[1754182455256,3.31,159.56,159.47,3.60401251]
[1754182455659,3.31,159.56,159.47,6.87401251]
[1754182455855,3.31,159.54,159.47,3.60401251]
[1754182456157,3.31,159.53,159.49,3.27]
[1754182456459,6.271,159.51,159.46,3.27]
[1754182456656,3.31,159.5,159.46,3.27]
[1754182457055,6.2711,159.5,159.46,3.27]
[1754182457360,3.31,159.48,159.46,9.5426]
[1754182458962,3.31,159.48,159.47,3.27]
[1754182460058,3.31,159.48,159.46,3.27]
[1754182460254,3.31,159.52,159.44,6.87401251]
[1754182460460,3.31,159.5,159.45,3.27]
[1754182460659,3.31,159.5,159.46,3.27]
[1754182461059,3.31,159.53,159.47,9.5421]
[1754182461452,3.31,159.52,159.47,9.5421]
[1754182461652,127.17,159.56,159.49,3.27]
[1754182461858,3.31,159.55,159.49,3.27]
[1754182462263,3.31,159.54,159.51,3.27]
[1754182462458,3.31,159.55,159.51,3.27]
[1754182462859,3.31,159.55,159.49,3.27]
[1754182464060,6.2699,159.54,159.49,3.27]
[1754182464366,3.31,159.53,159.48,9.87581251]
[1754182464569,3.31,159.53,159.48,13.14581251]
[1754182464758,3.31,159.53,159.49,3.27]
[1754182464959,3.31,159.52,159.49,3.27]
[1754182465163,3.31,159.51,159.49,3.27]
[1754182465366,3.31,159.51,159.49,9.04312781]
[1754182465562,3.31,159.51,159.49,15.31462781]
[1754182466370,3.31,159.51,159.49,9.04312781]
[1754182466971,3.31,159.51,159.49,15.31452781]
[1754182467669,3.31,159.51,159.5,3.27]
[1754182468075,3.31,159.51,159.5,13.14511251]
[1754182468271,3.31,159.51,159.5,3.60401251]
[1754182468574,3.31,159.51,159.5,6.87401251]
[1754182469476,3.31,159.54,159.52,3.27]
[1754182469871,3.31,159.53,159.52,3.27]
[1754182470475,3.31,159.58,159.52,3.60401251]
[1754182470678,3.31,159.57,159.55,3.27]
[1754182470873,3.31,159.56,159.54,3.60401251]
[1754182471076,3.31,159.56,159.54,6.87401251]
[1754182471271,3.31,159.55,159.54,6.87401251]
[1754182471476,3.31,159.55,159.54,3.60401251]
[1754182471679,3.31,159.57,159.54,6.87401251]
[1754182471877,3.31,159.61,159.54,6.87401251]
[1754182472271,3.31,159.56,159.52,13.14421251]
[1754182472480,3.31,159.56,159.5,6.87401251]
[1754182472775,3.31,159.56,159.51,5.78267211]
[1754182472970,3.31,159.56,159.52,5.78267211]
[1754182473174,3.31,159.56,159.51,5.78267211]
[1754182473383,6.2694,159.55,159.52,5.78267211]
[1754182473583,3.31,159.56,159.5,13.14501251]
[1754182473584,3.31,159.56,159.51,5.78267211]
[1754182473878,3.31,159.56,159.52,5.78267211]
[1754182474082,9.5788,159.56,159.51,9.09267211]
[1754182474277,22.43401251,159.6,159.52,9.09267211]
[1754182474484,22.43401251,159.6,159.53,5.78267211]
[1754182474485,3.34,159.59,159.53,5.78267211]
[1754182474673,6.269,159.56,159.53,5.78267211]
[1754182474876,3.34,159.55,159.52,9.09267211]
[1754182475072,3.34,159.55,159.52,5.78267211]
[1754182475277,3.34,159.55,159.51,3.60401251]
[1754182475486,3.34,159.55,159.52,5.78875339]
[1754182475680,3.34,159.55,159.51,6.91401251]
[1754182475877,3.34,159.55,159.52,5.78875106]
[1754182476078,3.34,159.55,159.51,6.91401251]
[1754182476278,3.34,159.56,159.52,9.09729633]
[1754182476480,3.34,159.55,159.53,9.09729633]
[1754182476776,6.2684,159.57,159.53,9.09729633]
[1754182476777,3.34,159.61,159.54,5.78981815]
[1754182476978,3.34,159.58,159.56,3.31]
[1754182477381,3.34,159.58,159.57,3.31]
[1754182477582,3.34,159.58,159.55,13.18281251]
[1754182477780,3.34,159.58,159.56,3.31]
[1754182477983,123.64,159.63,159.56,3.31]
[1754182478180,3.34,159.57,159.56,3.31]
[1754182478575,3.34,159.58,159.56,9.5787]
[1754182479082,3.34,159.58,159.56,3.31]
[1754182479387,3.34,159.59,159.56,3.31]
[1754182479886,3.34,159.59,159.57,5.79561987]
[1754182480081,3.34,159.59,159.56,3.31]
[1754182480284,6.2669,159.61,159.57,5.79561888]
[1754182480581,3.34,159.61,159.59,3.31]
[1754182480778,123.64,159.63,159.59,3.31]
[1754182480982,3.34,159.6,159.59,3.31]
[1754182481183,3.34,159.6,159.59,9.10613785]
[1754182481385,3.34,159.6,159.59,9.1078243]
[1754182482587,123.64,159.63,159.61,3.31]
[1754182482588,3.34,159.62,159.61,3.31]
[1754182482786,3.34,159.62,159.61,9.1078243]
[1754182484491,3.34,159.62,159.61,5.7978243]
[1754182484982,3.34,159.62,159.59,13.18161251]
[1754182485181,3.34,159.61,159.6,9.10256828]
[1754182485382,3.34,159.61,159.6,5.79256828]
[1754182486685,3.34,159.61,159.6,9.10256828]
[1754182486888,3.34,159.61,159.6,15.36976828]
[1754182487191,6.2653,159.65,159.6,15.36976828]
[1754182487392,3.34,159.64,159.61,9.10256828]
[1754182487594,3.34,159.64,159.59,13.18151251]
[1754182487890,25.77401251,159.65,159.57,3.60401251]
[1754182488092,3.34,159.64,159.58,5.78816315]
[1754182488290,3.34,159.64,159.59,5.78816315]
[1754182488492,22.43401251,159.65,159.55,6.91401251]
[1754182488493,3.34,159.6,159.55,6.91401251]
[1754182488679,3.34,159.6,159.56,5.78930367]
[1754182488885,9.6075,159.6,159.57,5.78930367]
[1754182489083,9.6075,159.6,159.55,6.91401251]
[1754182489084,3.34,159.59,159.55,6.91401251]
[1754182489287,3.34,159.59,159.56,5.78994945]
[1754182489485,3.34,159.59,159.57,5.78994945]
[1754182489683,3.34,159.59,159.58,5.78994945]
[1754182489994,3.34,159.61,159.58,5.78994945]
[1754182490198,3.34,159.61,159.55,3.31]
[1754182490390,126.76,159.61,159.56,5.78996711]
[1754182490586,3.34,159.6,159.53,5.78996711]
[1754182490787,3.34,159.56,159.52,3.31]
[1754182490986,3.34,159.56,159.53,5.79445829]
[1754182491188,3.34,159.56,159.52,3.31]
[1754182491386,3.34,159.55,159.53,5.79495743]
[1754182491595,3.34,159.55,159.51,3.60401251]
[1754182491596,3.34,159.55,159.51,6.91401251]
[1754182491789,3.60401251,159.6,159.52,9.10603349]
[1754182491997,3.34,159.59,159.53,12.710046]
[1754182492197,3.34,159.59,159.54,9.10603349]
[1754182492405,3.34,159.59,159.54,3.31]
[1754182492694,3.34,159.59,159.55,9.1044915]
[1754182492888,3.34,159.59,159.55,3.31]
[1754182493293,3.34,159.58,159.54,5.79524297]
[1754182493490,3.34,159.57,159.5,5.79524297]
[1754182493687,3.34,159.57,159.51,5.79524297]
[1754182493891,3.34,159.57,159.52,5.79524297]
[1754182494098,3.34,159.57,159.5,3.31]
[1754182494293,3.34,159.57,159.51,5.79795846]
[1754182494501,3.34,159.57,159.52,5.79795846]
[1754182494696,3.34,159.57,159.5,3.31]
[1754182495001,3.34,159.57,159.53,3.31]
[1754182495493,9.6087,159.57,159.53,3.31]
[1754182495693,3.34,159.55,159.53,3.31]
[1754182496304,3.34,159.57,159.54,3.31]
[1754182496494,3.34,159.56,159.54,3.31]
[1754182497595,3.34,159.56,159.55,3.31]
[1754182497905,3.34,159.58,159.55,5.79884421]
[1754182498095,123.36,159.6,159.56,5.79681089]
[1754182498295,126.7,159.6,159.58,3.31]
[1754182498596,3.34,159.59,159.56,5.79725493]
[1754182498803,3.34,159.59,159.57,3.31]
[1754182499397,3.34,159.58,159.57,3.31]
[1754182499598,3.34,159.59,159.56,5.79762964]
[1754182499792,3.34,159.59,159.52,3.31]
[1754182500000,3.34,159.59,159.53,5.7978627]
[1754182500301,6.2703,159.53,159.47,3.31]
[1754182500500,3.34,159.55,159.49,3.31]
[1754182501491,3.34,159.54,159.5,3.60401251]
[1754182501697,3.34,159.54,159.52,3.31]
[1754182502500,3.34,159.54,159.5,3.60401251]
[1754182502501,3.34,159.54,159.53,3.31]
[1754182503295,3.34,159.56,159.53,3.31]
[1754182503600,126.88401251,159.6,159.52,3.60401251]
[1754182503601,123.28,159.6,159.52,3.60401251]
[1754182503808,3.47,159.57,159.55,3.32]
[1754182504100,3.47,159.61,159.55,3.32]
[1754182504801,3.47,159.6,159.56,3.60401251]
[1754182505005,123.26,159.62,159.58,3.32]
[1754182505196,3.47,159.6,159.58,3.32]
[1754182505803,3.47,159.6,159.56,6.92401251]
[1754182505995,3.47,159.6,159.5,3.60401251]
[1754182505996,3.47,159.6,159.54,6.92401251]
[1754182506202,3.47,159.55,159.51,3.60401251]
[1754182506408,3.47,159.53,159.51,6.92401251]
[1754182506898,22.43401251,159.6,159.49,6.92401251]
[1754182507203,3.47,159.59,159.51,6.92401251]
[1754182507707,3.47,159.54,159.51,6.92401251]
[1754182508106,3.47,159.54,159.52,3.32]
[1754182509609,6.2691,159.56,159.51,3.32]
[1754182509805,3.47,159.55,159.52,3.32]
[1754182510012,3.47,159.55,159.51,3.32]
[1754182510210,6.2683,159.58,159.51,3.32]
[1754182510413,6.2687,159.57,159.53,3.32]
[1754182510607,3.47,159.56,159.53,3.32]
[1754182510809,3.47,159.55,159.53,3.32]
[1754182511902,3.47,159.55,159.54,3.32]